bitfinex/quotes_SOLUSD_20250928
["timestamp","ask_amount","ask_price","bid_price","bid_amount"]
[1759050211949,41.10031758,202.17,202.16,0.2]
[1759050212158,38.14,202.19,202.16,0.2]
[1759050212159,4.94363246,202.29,202.16,6.65130053]
[1759050212447,8.26978024,202.36,202.16,6.65130053]
[1759050212448,1.9841762,202.24,202.2,1.50472357]
[1759050212647,26.0,202.25,202.21,0.71]
[1759050213437,26.0,202.25,202.22,4.94510928]
[1759050213654,26.0,202.25,202.23,0.71]
[1759050213855,0.72,202.31,202.23,0.71]
[1759050213856,0.72,202.34,202.23,0.71]
[1759050214024,1.50472357,202.3,202.24,1.50472357]
[1759050214222,26.0,202.28,202.25,2.21472357]
[1759050214417,13.59559401,202.27,202.26,0.71]
[1759050215141,13.59559401,202.27,202.26,5.65413131]
[1759050215518,13.59559401,202.27,202.26,0.71]
[1759050215732,13.59559401,202.27,202.26,5.65413131]
[1759050218326,15.10031758,202.27,202.22,0.71]
[1759050218539,13.59559401,202.24,202.22,0.71]
[1759050220044,13.59559401,202.24,202.23,4.94486475]
[1759050220345,13.59559401,202.24,202.23,5.65486475]
[1759050221850,13.59559401,202.24,202.23,0.71]
[1759050222056,13.59559401,202.24,202.23,5.65486475]
[1759050223032,1.98378258,202.26,202.23,5.65486475]
[1759050223232,13.59559401,202.25,202.24,0.71]
[1759050223560,40.8768937,202.28,202.24,2.21472357]
[1759050223760,13.59559401,202.27,202.25,0.71]
[1759050223962,13.59559401,202.27,202.25,2.21472357]
[1759050224155,13.59559401,202.27,202.26,4.94413131]
[1759050224469,13.59559401,202.27,202.26,5.65413131]
[1759050227463,13.59559401,202.27,202.26,0.71]
[1759050227668,13.59559401,202.27,202.26,5.65413131]
[1759050229875,13.59559401,202.27,202.25,0.71]
[1759050231868,15.94682554,202.27,202.25,4.94421738]
[1759050232071,16.63682554,202.27,202.25,4.94421738]
[1759050232567,15.94682554,202.27,202.25,4.94421738]
[1759050234269,15.94682554,202.27,202.24,4.94462025]
[1759050234470,13.59559401,202.27,202.24,5.62462025]
[1759050234770,15.94682554,202.27,202.24,5.62462025]
[1759050235563,16.63682554,202.27,202.24,4.94462025]
[1759050238570,13.59559401,202.27,202.24,5.62462025]
[1759050238876,14.28559401,202.27,202.24,17.98617088]
[1759050239357,14.28559401,202.27,202.24,17.30617088]
[1759050240583,13.59559401,202.25,202.23,4.94486475]
[1759050241794,13.59559401,202.23,202.17,4.94633229]
[1759050242096,13.59559401,202.2,202.17,4.94633229]
[1759050242253,13.59559401,202.2,202.17,5.62633229]
[1759050242750,13.59559401,202.2,202.17,17.99203332]
[1759050243487,13.59559401,202.2,202.17,5.62633229]
[1759050246856,14.28559401,202.2,202.17,4.94633229]
[1759050247077,13.59559401,202.18,202.16,0.2]
[1759050247258,15.94682554,202.18,202.16,0.2]
[1759050247466,14.28559401,202.17,202.16,0.2]
[1759050247763,14.28559401,202.17,202.16,5.14657696]
[1759050248077,13.59559401,202.17,202.16,5.14657696]
[1759050248787,13.59559401,202.19,202.16,5.82657696]
[1759050249275,14.28559401,202.19,202.16,17.51301938]
[1759050249501,13.59559401,202.21,202.17,0.68]
[1759050249779,26.0,202.19,202.18,0.68]
[1759050250352,26.0,202.2,202.16,58.78425091]
[1759050250553,26.0,202.2,202.17,0.72]
[1759050251275,26.0,202.2,202.18,4.94608764]
[1759050251481,26.0,202.2,202.18,5.66608764]
[1759050251655,13.59559401,202.21,202.18,18.03130675]
[1759050251858,13.59559401,202.21,202.19,0.72]
[1759050252579,26.0,202.23,202.2,0.72]
[1759050252776,13.59559401,202.26,202.21,2.35123153]
[1759050252979,13.59559401,202.26,202.23,2.35123153]
[1759050253167,26.0,202.24,202.23,3.07123153]
[1759050253367,26.0,202.24,202.23,8.01609628]
[1759050255484,13.59559401,202.26,202.23,8.01609628]
[1759050255674,13.59559401,202.26,202.23,20.37825817]
[1759050256858,14.29559401,202.26,202.23,19.65825817]
[1759050257293,14.29559401,202.26,202.23,17.30702664]
[1759050257467,15.94682554,202.24,202.21,38.18]
[1759050257666,0.7,202.23,202.21,38.18]
[1759050258763,0.7,202.22,202.19,55.49045055]
[1759050258966,0.7,202.21,202.19,55.49045055]
[1759050260789,0.69,202.2,202.19,43.12584301]
[1759050261100,14.28559401,202.22,202.19,43.12584301]
[1759050261268,0.69,202.21,202.19,43.12584301]
[1759050261465,0.69,202.21,202.19,4.94584301]
[1759050261675,13.59559401,202.22,202.19,43.12584301]
[1759050261897,14.28559401,202.22,202.19,43.12584301]
[1759050263398,0.69,202.21,202.19,43.12584301]
[1759050264876,13.59559401,202.22,202.18,4.94608764]
[1759050265088,0.69,202.2,202.18,43.10608764]
[1759050266276,14.28559401,202.22,202.18,43.10608764]
[1759050266491,0.69,202.21,202.18,43.10608764]
[1759050269808,13.59559401,202.22,202.19,0.67]
[1759050269974,13.59559401,202.22,202.19,3.02123153]
[1759050270179,13.59559401,202.23,202.19,2.35123153]
[1759050270477,0.69,202.22,202.19,2.35123153]
[1759050270676,0.69,202.22,202.18,55.47130675]
[1759050270900,0.69,202.22,202.18,58.49253828]
[1759050271908,39.59559401,202.2,202.16,5.14643972]
[1759050272108,13.59559401,202.18,202.16,5.14643972]
[1759050272703,14.28559401,202.17,202.16,0.2]
[1759050272885,16.63682554,202.17,202.16,0.2]
[1759050276610,13.59559401,202.17,202.16,0.2]
[1759050278519,26.0,202.17,202.16,5.81657696]
[1759050279981,13.59559401,202.19,202.16,5.81657696]
[1759050280532,13.59559401,202.21,202.17,0.67]
[1759050280993,13.59559401,202.21,202.17,2.35123153]
[1759050281186,13.59559401,202.21,202.18,0.67]
[1759050281387,13.59559401,202.21,202.19,0.67]
[1759050281595,13.59559401,202.22,202.2,0.67]
[1759050281909,26.0,202.22,202.2,0.67]
[1759050282399,26.0,202.22,202.21,4.94535384]
[1759050283013,26.0,202.22,202.2,4.94559135]
[1759050283720,26.0,202.22,202.18,38.14]
[1759050283888,0.69,202.21,202.18,38.14]
[1759050284094,26.69,202.22,202.18,38.14]
[1759050284394,0.69,202.21,202.18,38.14]
[1759050284714,0.69,202.21,202.19,4.94584301]
[1759050285098,14.28559401,202.2,202.17,4.94628463]
[1759050285295,16.63682554,202.2,202.16,38.34]
[1759050285494,0.69,202.19,202.16,38.34]
[1759050285925,14.28559401,202.22,202.17,3.02123153]
[1759050286125,14.28559401,202.22,202.18,0.67]
[1759050286627,14.28559401,202.22,202.19,4.94584301]
[1759050288619,14.28559401,202.22,202.18,4.94608764]
[1759050288827,0.69,202.21,202.18,4.94608764]
[1759050289033,13.59559401,202.22,202.18,4.94608764]
[1759050289202,14.28559401,202.22,202.18,4.94608764]
[1759050289402,0.69,202.21,202.18,4.94608764]
[1759050289715,13.59559401,202.22,202.18,4.94608764]
[1759050289919,0.69,202.21,202.18,4.94608764]
[1759050291616,14.25559401,202.23,202.18,5.61608764]
[1759050291814,0.66,202.22,202.18,7.12190516]
[1759050293809,26.0,202.2,202.18,7.12190516]
[1759050294106,26.0,202.2,202.18,6.45190516]
[1759050294307,26.0,202.2,202.18,4.94608764]
[1759050295022,26.0,202.2,202.18,5.61608764]
[1759050296701,26.0,202.2,202.18,4.94608764]
[1759050296903,14.25559401,202.26,202.19,2.17581752]
[1759050297120,13.59559401,202.22,202.19,2.17581752]
[1759050297316,26.0,202.23,202.2,2.17581752]
[1759050297512,26.66,202.23,202.19,1.50581752]
[1759050297826,14.25559401,202.22,202.19,38.14]
[1759050298318,26.0,202.23,202.2,2.17581752]
[1759050298821,26.0,202.23,202.21,4.94535384]
[1759050299821,26.66,202.23,202.21,4.94535384]
[1759050300798,26.66,202.23,202.2,4.94559841]
[1759050301003,14.25559401,202.22,202.18,4.945989]
[1759050301213,0.66,202.21,202.18,43.085989]
[1759050302228,13.59559401,202.19,202.17,38.14]
[1759050302524,0.66,202.19,202.17,38.14]
[1759050302744,13.59559401,202.2,202.17,38.14]
[1759050302901,13.59559401,202.2,202.17,43.08609108]
[1759050303239,14.25559401,202.2,202.17,43.08609108]
[1759050306535,13.59559401,202.2,202.18,0.67]
[1759050307035,13.59559401,202.2,202.17,44.5919086]
[1759050308430,26.0,202.23,202.18,0.67]
[1759050308626,26.0,202.23,202.2,1.50581752]
[1759050308832,26.0,202.23,202.21,2.17581752]
[1759050309032,26.0,202.24,202.22,0.67]
[1759050309542,14.25559401,202.27,202.22,2.17581752]
[1759050309714,14.25559401,202.27,202.23,39.64581752]
[1759050309912,13.59559401,202.28,202.25,1.50581752]
[1759050310117,13.59559401,202.28,202.26,4.94413131]
[1759050312540,0.66,202.27,202.24,4.94444317]
[1759050313049,0.66,202.26,202.24,4.94444317]
[1759050313342,14.25559401,202.28,202.24,4.94444317]
[1759050313527,0.66,202.27,202.24,43.08444317]
[1759050314337,0.66,202.27,202.24,4.94444317]
[1759050314543,13.59559401,202.28,202.24,45.26026069]
[1759050314843,14.25559401,202.28,202.24,57.62181132]
[1759050316528,13.59559401,202.28,202.24,57.62181132]
[1759050316732,14.25559401,202.32,202.26,1.50581752]
[1759050316926,14.25559401,202.32,202.28,1.50581752]
[1759050317126,14.25559401,202.32,202.28,0.67]
[1759050317539,0.66,202.32,202.28,0.67]
[1759050317843,0.66,202.34,202.29,2.17581752]
[1759050318431,0.66,202.34,202.3,38.14]
[1759050318618,0.66,202.34,202.31,4.94290939]
[1759050319431,39.59559401,202.35,202.31,4.94290939]
[1759050319637,0.66,202.34,202.31,4.94290939]
[1759050321955,13.59559401,202.35,202.31,4.94290939]
[1759050321956,26.0,202.35,202.31,5.66290939]
[1759050322162,26.0,202.35,202.31,4.94290939]
[1759050322451,26.72,202.35,202.31,5.66290939]
[1759050322852,0.72,202.34,202.31,4.94290939]
[1759050323554,1.50581752,202.37,202.31,4.94290939]
[1759050323848,0.2,202.38,202.34,4.94217653]
[1759050324343,0.2,202.38,202.35,0.72]
[1759050324547,0.2,202.38,202.35,2.22581752]
[1759050326158,0.2,202.38,202.35,7.1675784]
[1759050327774,0.2,202.38,202.35,6.4475784]
[1759050327949,0.2,202.38,202.37,4.94144388]
[1759050329580,0.2,202.38,202.37,5.66144388]
[1759050330441,0.2,202.38,202.37,4.94144388]
[1759050331147,0.2,202.38,202.3,12.3578356]
[1759050331454,15.82141153,202.37,202.31,38.12]
[1759050331762,0.72,202.36,202.31,39.62581752]
[1759050332062,0.72,202.36,202.31,40.34581752]
[1759050332261,13.59559401,202.37,202.31,45.28851724]
[1759050332453,27.50581752,202.34,202.28,2.22581752]
[1759050332768,0.72,202.33,202.29,38.12]
[1759050332974,0.72,202.32,202.29,38.12]
[1759050333340,0.72,202.31,202.28,38.12]
[1759050334861,0.72,202.3,202.28,38.12]
[1759050335042,0.72,202.3,202.26,0.72]
[1759050335247,26.72,202.29,202.26,38.12]
[1759050335953,0.72,202.28,202.24,5.66459032]
[1759050336158,26.0,202.29,202.24,43.06459032]
[1759050336355,26.72,202.29,202.25,0.72]
[1759050337062,28.22581752,202.29,202.25,0.72]
[1759050337266,26.0,202.29,202.26,0.72]
[1759050337966,15.82141153,202.32,202.26,0.72]
[1759050338140,15.82141153,202.32,202.26,2.22581752]
[1759050338448,0.72,202.31,202.26,0.72]
[1759050338644,0.72,202.3,202.26,5.66396191]
[1759050338869,15.82141153,202.32,202.26,5.66396191]
[1759050339040,0.72,202.31,202.26,5.66396191]
[1759050339244,0.72,202.3,202.26,5.66396191]
[1759050339647,0.72,202.3,202.26,4.94396191]
[1759050339866,14.31559401,202.32,202.26,4.94396191]
[1759050340168,2.22581752,202.31,202.26,5.66396191]
[1759050340355,0.72,202.3,202.26,4.94396191]
[1759050340670,0.72,202.3,202.26,5.66396191]
[1759050341477,0.72,202.3,202.26,140.36396191]
[1759050342161,15.82141153,202.32,202.26,141.14977943]
[1759050342345,15.82141153,202.32,202.26,141.86977943]
[1759050343150,13.59559401,202.32,202.27,2.22581752]
[1759050343350,13.59559401,202.32,202.28,0.72]
[1759050343971,13.59559401,202.32,202.29,0.72]
[1759050344163,13.59559401,202.34,202.3,0.72]
[1759050344491,1.50581752,202.37,202.3,1.50581752]
[1759050344665,26.0,202.35,202.31,2.22581752]
[1759050345052,0.72,202.34,202.29,135.42]
[1759050345276,0.72,202.34,202.29,136.92581752]
[1759050345473,0.72,202.34,202.3,0.72]
[1759050345679,0.72,202.34,202.31,38.14]
[1759050348877,13.59559401,202.35,202.31,38.14]
[1759050348878,0.72,202.33,202.31,38.14]
[1759050349064,14.31559401,202.35,202.31,38.14]
[1759050349265,14.31559401,202.35,202.31,38.86]
[1759050350560,28.35004931,202.37,202.32,0.71]
[1759050350771,13.59559401,202.36,202.33,0.71]
[1759050350970,13.59559401,202.36,202.31,45.43292901]
[1759050351173,14.30559401,202.36,202.32,0.71]
[1759050352177,14.30559401,202.36,202.32,5.65259848]
[1759050353490,13.59559401,202.36,202.32,4.94259848]
[1759050353776,0.91,202.38,202.33,0.71]
[1759050353945,3.26004931,202.38,202.33,0.71]
[1759050354147,0.71,202.37,202.33,0.71]
[1759050354585,0.71,202.37,202.33,8.00223398]
[1759050355475,0.2,202.38,202.34,41.18004931]
[1759050355659,0.2,202.38,202.36,2.35004931]
[1759050355858,0.2,202.38,202.37,38.12]
[1759050357065,0.91,202.38,202.37,38.12]
[1759050359077,0.2,202.38,202.37,38.12]
[1759050361179,13.59559401,202.37,202.35,38.12]
[1759050361479,13.59559401,202.35,202.27,0.71]
[1759050361782,13.59559401,202.32,202.27,38.12]
[1759050361969,13.59559401,202.32,202.27,43.77388352]
[1759050361970,14.30559401,202.32,202.27,43.77388352]
[1759050362169,0.71,202.31,202.27,43.77388352]
[1759050362472,0.71,202.31,202.27,43.06388352]
[1759050362674,3.06004931,202.3,202.24,7.29463843]
[1759050362871,0.71,202.29,202.25,38.12]
[1759050363055,0.71,202.28,202.25,38.12]
[1759050363684,2.35004931,202.31,202.25,38.12]
[1759050363877,14.30559401,202.3,202.25,46.12433918]
[1759050364183,13.59559401,202.33,202.28,2.35004931]
[1759050364383,14.30559401,202.35,202.29,3.06004931]
[1759050364564,13.59559401,202.34,202.29,3.06004931]
[1759050364767,39.59559401,202.34,202.29,3.06004931]
[1759050364965,39.59559401,202.34,202.3,0.71]
[1759050365178,40.30559401,202.34,202.3,0.71]
[1759050365872,40.30559401,202.34,202.29,7.29334361]
[1759050366260,40.30559401,202.34,202.29,8.00334361]
[1759050367985,41.18004931,202.37,202.31,2.35004931]
[1759050368176,13.79559401,202.38,202.33,2.35004931]
[1759050368482,13.79559401,202.38,202.34,2.35004931]
[1759050368683,14.50559401,202.38,202.34,3.06004931]
[1759050368882,0.2,202.38,202.34,3.06004931]
[1759050369083,0.2,202.38,202.35,3.06004931]
[1759050369289,0.2,202.38,202.36,2.35004931]
[1759050370073,0.2,202.38,202.37,7.98149319]
[1759050371785,0.2,202.38,202.37,7.29149319]
[1759050371973,0.2,202.38,202.37,43.10144388]
[1759050372671,0.2,202.38,202.37,45.45149319]
[1759050374786,0.2,202.38,202.37,43.10144388]
[1759050379298,0.2,202.38,202.37,43.06144388]
[1759050381594,0.2,202.38,202.36,137.05004931]
[1759050381800,0.66,202.37,202.32,12.35649343]
[1759050381991,0.66,202.36,202.33,43.06239267]
[1759050382180,0.66,202.35,202.33,43.06239267]
[1759050384079,0.66,202.35,202.33,38.12]
[1759050384612,14.25559401,202.37,202.33,45.41244572]
[1759050384812,14.25559401,202.37,202.33,43.77239641]
[1759050385094,14.25559401,202.37,202.33,46.12244572]
[1759050385999,0.2,202.38,202.34,3.06004931]
[1759050386211,0.2,202.38,202.35,40.47004931]
[1759050386499,0.2,202.38,202.37,2.35004931]
[1759050386695,0.2,202.38,202.37,40.47004931]
[1759050387402,0.2,202.38,202.37,46.12149319]
[1759050388201,0.2,202.38,202.37,43.06144388]
[1759050389808,0.2,202.38,202.37,45.41149319]
[1759050390002,0.2,202.38,202.37,46.12149319]
[1759050391085,0.86,202.38,202.36,38.12]
[1759050391383,0.2,202.38,202.36,41.18004931]
[1759050392096,0.2,202.38,202.36,40.47004931]
[1759050392718,0.66,202.37,202.32,17.29914619]
[1759050392892,0.66,202.36,202.33,38.12]
[1759050393209,0.66,202.35,202.31,4.94287523]
[1759050393509,0.66,202.34,202.32,38.12]
[1759050393980,0.66,202.34,202.31,4.94287523]
[1759050394183,0.66,202.34,202.32,38.16]
[1759050394396,0.66,202.36,202.33,38.16]
[1759050394647,0.66,202.35,202.33,38.16]
[1759050396009,0.66,202.35,202.33,43.10240872]
[1759050396709,2.35004931,202.37,202.33,43.10240872]
[1759050396710,26.66,202.37,202.33,43.10240872]
[1759050396902,0.66,202.36,202.33,43.10240872]
[1759050397401,2.35004931,202.35,202.33,43.10240872]
[1759050397984,3.01004931,202.35,202.33,43.10240872]
[1759050399445,2.35004931,202.35,202.33,43.10240872]
[1759050399656,2.35004931,202.36,202.33,43.10240872]
[1759050400313,3.01004931,202.36,202.33,43.10240872]
[1759050404742,2.35004931,202.36,202.33,43.10240872]
[1759050406142,29.01004931,202.36,202.33,38.16]
[1759050407325,26.66,202.36,202.33,40.51004931]
[1759050408336,26.0,202.37,202.33,46.16243341]
[1759050408536,26.66,202.37,202.33,46.16243341]
[1759050410524,26.66,202.37,202.33,45.31582052]
[1759050413330,26.68,202.37,202.33,45.31582052]
[1759050413531,0.68,202.37,202.33,45.31582052]
[1759050413732,0.68,202.36,202.33,38.16]
[1759050413934,0.68,202.35,202.33,38.16]
[1759050414149,14.27559401,202.37,202.33,43.10231501]
[1759050414354,0.68,202.36,202.33,43.10231501]
[1759050414732,0.68,202.35,202.3,5.65297818]
[1759050414930,0.68,202.35,202.31,40.33343642]
[1759050415859,0.68,202.35,202.32,4.94266508]
[1759050416034,0.68,202.35,202.33,38.12]
[1759050420342,14.27559401,202.34,202.29,1.50343642]
[1759050420550,13.59559401,202.32,202.28,38.12]
[1759050420759,0.68,202.31,202.28,38.12]
[1759050421134,0.68,202.3,202.28,38.12]
[1759050421760,0.68,202.29,202.28,38.12]
[1759050422054,0.68,202.29,202.24,1.50343642]
[1759050422260,13.59559401,202.27,202.25,38.12]
[1759050422436,0.68,202.26,202.25,38.12]
[1759050422936,0.68,202.26,202.2,0.71]
[1759050423130,0.68,202.26,202.19,1.50343642]
[1759050423131,13.59559401,202.23,202.19,1.50343642]
[1759050423346,13.59559401,202.23,202.2,38.12]
[1759050423555,14.27559401,202.23,202.2,38.12]
[1759050424759,13.59559401,202.23,202.2,38.12]
[1759050425257,14.27559401,202.23,202.2,38.12]
[1759050425842,0.68,202.22,202.2,38.12]
[1759050426044,13.59559401,202.23,202.2,38.12]
[1759050426243,14.27559401,202.23,202.2,38.12]
[1759050427349,14.27559401,202.23,202.2,38.83]
[1759050427665,0.68,202.22,202.2,38.12]
[1759050428070,13.59559401,202.23,202.16,0.2]
[1759050428071,13.59559401,202.2,202.16,0.2]
[1759050428249,13.59559401,202.2,202.16,1.70343642]
[1759050428561,14.27559401,202.21,202.17,0.71]
[1759050429156,39.59559401,202.23,202.17,0.71]
[1759050429356,39.59559401,202.23,202.19,1.50343642]
[1759050429557,26.0,202.22,202.21,1.50343642]
[1759050429861,39.59559401,202.26,202.21,40.33343642]
[1759050430062,39.59559401,202.26,202.24,1.50343642]
[1759050430262,26.0,202.26,202.24,1.50343642]
[1759050430767,26.67,202.26,202.23,1.50343642]
[1759050431244,26.0,202.26,202.21,38.12]
[1759050431445,26.67,202.26,202.23,1.50343642]
[1759050432562,26.67,202.26,202.22,4.94497964]
[1759050432870,0.67,202.25,202.21,43.06533896]
[1759050433056,0.67,202.24,202.21,43.06533896]
[1759050433374,0.67,202.24,202.21,38.12]
[1759050433744,0.67,202.23,202.2,38.12]
[1759050434040,0.67,202.22,202.2,38.12]
[1759050434557,13.59559401,202.23,202.2,38.12]
[1759050434866,40.26559401,202.23,202.2,38.12]
[1759050435555,40.26559401,202.23,202.2,44.56900729]
[1759050435952,40.26559401,202.23,202.2,39.62343642]
[1759050436152,0.67,202.22,202.2,38.12]
[1759050436355,0.67,202.21,202.18,6.44950216]
[1759050436667,0.67,202.21,202.19,38.12]
[1759050437051,0.67,202.22,202.19,38.12]
[1759050438367,26.0,202.23,202.19,38.12]
[1759050438672,13.59559401,202.26,202.22,1.50343642]
[1759050438868,13.59559401,202.26,202.24,1.50343642]
[1759050440674,13.59559401,202.26,202.21,1.50343642]
[1759050440856,13.59559401,202.23,202.19,38.16]
[1759050441174,40.30559401,202.22,202.19,38.16]
[1759050441876,13.59559401,202.2,202.16,0.2]
[1759050442067,39.59559401,202.17,202.16,0.2]
[1759050442262,40.30559401,202.17,202.16,0.2]
[1759050442473,41.80903043,202.17,202.16,0.2]
[1759050443457,46.75536272,202.17,202.16,0.2]
[1759050443859,61.64259196,202.17,202.16,0.2]
[1759050444266,56.69625967,202.17,202.16,0.2]
[1759050444477,39.59559401,202.17,202.16,0.2]
[1759050444686,1.50343642,202.2,202.16,0.2]
[1759050444860,13.59559401,202.18,202.16,0.2]
[1759050445176,40.30559401,202.17,202.16,0.2]
[1759050445582,41.80903043,202.17,202.16,0.2]
[1759050446282,40.30559401,202.17,202.16,0.2]
[1759050446482,39.59559401,202.17,202.16,0.2]
[1759050447381,1.98447151,202.19,202.16,2.38343642]
[1759050447687,14.30559401,202.18,202.16,0.2]
[1759050447992,39.59559401,202.18,202.16,0.2]
[1759050448693,0.71,202.17,202.16,0.2]
[1759050448868,39.59559401,202.18,202.16,0.2]
[1759050449194,40.30559401,202.18,202.16,0.2]
[1759050449378,39.59559401,202.18,202.16,0.2]
[1759050449780,40.30559401,202.18,202.16,0.2]
[1759050450089,15.80903043,202.17,202.16,0.2]
[1759050450773,17.7936004,202.17,202.16,0.2]
[1759050451094,13.59559401,202.17,202.16,0.2]
[1759050451670,1.98447151,202.19,202.16,0.2]
[1759050451978,13.59559401,202.2,202.16,0.88]
[1759050452181,16.28986863,202.2,202.16,5.82650235]
[1759050452478,17.79330505,202.2,202.16,5.14650235]
[1759050452995,17.79330505,202.2,202.16,0.2]
[1759050453204,13.59559401,202.18,202.16,0.2]
[1759050453371,15.09903043,202.18,202.16,0.2]
[1759050453567,2.21343642,202.17,202.16,0.2]
[1759050453993,2.69456996,202.17,202.16,0.2]
[1759050454299,16.29016397,202.17,202.16,0.2]
[1759050454771,14.30559401,202.17,202.16,0.2]
[1759050454969,13.59559401,202.17,202.16,0.2]
[1759050456384,14.30559401,202.17,202.16,0.2]
[1759050457388,15.80903043,202.17,202.16,0.2]
[1759050459496,17.79379734,202.17,202.16,0.2]
[1759050459875,22.74012963,202.17,202.16,0.2]
[1759050460489,16.29036092,202.17,202.16,0.2]
[1759050460672,17.79379734,202.17,202.16,0.2]
[1759050460869,22.74012963,202.17,202.16,0.2]
[1759050463277,61.00012963,202.17,202.16,0.2]
[1759050463707,22.74012963,202.17,202.16,0.2]
[1759050463886,61.00012963,202.17,202.16,0.2]
[1759050466405,64.32176063,202.17,202.16,0.2]
[1759050470605,65.17405081,202.17,202.16,0.2]
[1759050477240,13.59559401,202.15,202.14,0.2]
[1759050477390,15.95132061,202.14,202.13,0.2]
[1759050477590,19.98295161,202.14,202.13,0.2]
[1759050477915,56.9068757,202.14,202.13,0.2]
[1759050478285,60.2288482,202.14,202.13,0.2]
[1759050479112,56.9068757,202.14,202.13,0.2]
[1759050479415,61.85394208,202.14,202.13,0.2]
[1759050480219,65.1767452,202.14,202.13,0.2]
[1759050481114,65.1567452,202.14,202.13,1e-08]
[1759050481706,41.95132061,202.12,202.11,0.2]
[1759050481906,80.21132061,202.12,202.11,0.2]
[1759050482095,41.95132061,202.12,202.11,0.2]
[1759050482301,42.66132061,202.12,202.11,0.2]
[1759050482501,80.92132061,202.12,202.11,0.2]
[1759050482915,82.90707284,202.12,202.11,0.2]
[1759050483319,87.85462874,202.12,202.11,0.2]
[1759050483510,39.59559401,202.08,202.07,0.2]
[1759050483813,80.21132061,202.08,202.07,0.2]
[1759050484197,82.19707283,202.08,202.07,0.2]
[1759050484511,82.88707283,202.08,202.07,0.2]
[1759050484904,82.90707283,202.08,202.07,0.2]
[1759050485306,49.59560806,202.08,202.07,0.2]
[1759050485616,90.21133466,202.08,202.07,0.2]
[1759050485822,51.95133466,202.08,202.07,0.2]
[1759050486019,90.21133466,202.08,202.07,0.2]
[1759050487203,13.59559401,202.07,202.06,0.2]
[1759050487505,23.25582733,202.07,202.06,0.2]
[1759050487820,62.24582733,202.07,202.06,0.2]
[1759050488014,39.59559401,202.01,202.0,0.7]
[1759050488213,41.95132061,202.01,201.99,0.2]
[1759050488410,2.3557266,202.0,201.99,0.2]
[1759050488722,7.30765542,202.0,201.99,0.2]
[1759050488920,7.30765542,202.0,201.99,0.9]
[1759050489311,7.30765542,202.0,201.99,0.2]
[1759050489312,25.85374447,202.0,201.99,0.2]
[1759050489710,64.11374447,202.0,201.99,0.2]
[1759050491319,25.85374447,202.0,201.99,0.2]
[1759050491527,64.13374447,202.0,201.99,0.2]
[1759050493509,59.16324943,202.0,201.99,0.89]
[1759050493835,64.11374447,202.0,201.99,0.2]
[1759050494334,64.13374447,202.0,201.99,0.2]
[1759050494536,25.85374447,202.0,201.99,0.2]
[1759050494735,26.51374447,202.0,201.99,0.2]
[1759050495028,64.79374447,202.0,201.99,0.2]
[1759050495234,26.51374447,202.0,201.99,0.2]
[1759050495430,64.79374447,202.0,201.99,0.2]
[1759050495946,18.54752283,202.0,201.99,0.89]
[1759050496836,13.59559401,202.0,201.99,0.89]
[1759050499758,18.6471182,202.0,201.99,0.89]
[1759050499928,13.59559401,202.0,201.99,0.89]
[1759050500632,59.85181565,202.0,201.99,0.2]
[1759050500938,64.80427093,202.0,201.99,0.2]
[1759050502138,26.52427093,202.0,201.99,0.2]
[1759050502510,64.80427093,202.0,201.99,0.2]
[1759050503533,64.13427093,202.0,201.99,0.2]
[1759050503731,61.77854433,202.0,201.99,0.2]
[1759050503939,64.13427093,202.0,201.99,0.2]
[1759050505113,18.54804929,202.0,201.99,0.88]
[1759050505314,44.54804929,202.0,201.99,0.88]
[1759050506115,44.54804929,202.0,201.99,0.2]
[1759050506422,51.85427093,202.0,201.99,0.2]